fUST/lending_fUST_20241004
["ID","MTS","AMOUNT","RATE_DAILY","PERIOD"]
[339803222,1727989758688,-500.0,0.00013698,2]
[339803223,1727989758725,-500.0,0.00013698,2]
[339803224,1727989758764,-500.0,0.00013698,2]
[339803225,1727989758801,-500.0,0.00013698,2]
[339803226,1727989758833,-500.0,0.00013698,2]
[339803227,1727989758865,-634.12,0.00013698,2]
[339803228,1727989758899,-500.0,0.00013698,2]
[339803229,1727989758933,-2085.08,0.00013698,2]
[339803230,1727989758967,-725.34,0.00013698,2]
[339803231,1727989759001,-500.0,0.00013698,2]
[339803232,1727989759034,-431.97253557,0.00013698,2]
[339803233,1727989759069,-500.0,0.00013698,2]
[339803234,1727989759103,-500.0,0.00013698,2]
[339803235,1727989759137,-500.0,0.00013698,2]
[339803236,1727989759170,-855.68,0.00013698,2]
[339803237,1727989759207,-500.0,0.00013698,2]
[339803238,1727989759241,-1018.47,0.00013698,2]
[339803239,1727989759274,-500.0,0.00013698,2]
[339803240,1727989759308,-500.0,0.00013698,2]
[339803241,1727989759341,-500.0,0.00013698,2]
[339803242,1727989759376,-500.0,0.00013698,2]
[339803243,1727989759411,-500.0,0.00013698,2]
[339803244,1727989759444,-500.0,0.00013698,2]
[339803245,1727989759476,-500.0,0.00013698,2]
[339803246,1727989759509,-500.0,0.00013698,2]
[339803247,1727989759542,-500.0,0.00013698,2]
[339803248,1727989759575,-570.66494701,0.00013698,2]
[339803249,1727989759610,-757.68,0.00013698,2]
[339803250,1727989759646,-500.0,0.00013698,2]
[339803251,1727989759681,-500.0,0.00013698,2]
[339803252,1727989759717,-458.30709146,0.00013698,2]
[339803253,1727989759751,-500.23550126,0.00013698,2]
[339803254,1727989759786,-500.0,0.00013698,2]
[339803255,1727989759821,-653.25,0.00013698,2]
[339803256,1727989759855,-500.0,0.00013698,2]
[339803257,1727989759891,-500.0,0.00013699,2]
[339803258,1727989759925,-500.0,0.00013699,2]
[339803259,1727989759960,-500.0,0.00013699,2]
[339803260,1727989759995,-500.0,0.00013699,2]
[339803261,1727989760029,-500.0,0.00013699,2]
[339803262,1727989760065,-629.88612562,0.00013699,2]
[339803263,1727989760098,-1556.980358,0.00013699,2]
[339803264,1727989760132,-7800.822511,0.00013699,2]
[339803265,1727989760166,-166.666666,0.00013699,2]
[339803266,1727989760200,-1384.2,0.000137,2]
[339803267,1727989760236,-150.112233,0.000137,2]
[339803268,1727989760269,-150.112233,0.000137,2]
[339803269,1727989760303,-150.112233,0.000137,2]
[339803270,1727989760338,-281.76681,0.000137,2]
[339803271,1727989760378,-206.074727,0.000137,2]
[339803272,1727989760417,-282.021928,0.00013764,2]
[339803273,1727989760450,-187.308322,0.00013764,2]
[339803274,1727989760485,-160.0,0.00013796,3]
[339803275,1727989760518,-4555.42750608,0.00013799,2]
[339803276,1727989760552,-150.112233,0.000138,2]
[339803277,1727989760585,-150.112233,0.000138,2]
[339803278,1727989760621,-4421.818,0.00013801,2]
[339803279,1727989760654,-397.0,0.0001382,2]
[339803280,1727989760686,-6361.47951315,0.00013832,2]
[339803281,1727989760720,-160.0,0.00013844,4]
[339803282,1727989760754,-1504.0,0.00013853,2]
[339803283,1727989760788,-150.0,0.00013885,2]
[339803284,1727989760823,-168.549575,0.00013892,2]
[339803285,1727989760858,-160.0,0.00013892,5]
[339803286,1727989760891,-150.112233,0.000139,2]
[339803287,1727989760924,-150.112233,0.000139,2]
[339803288,1727989760956,-150.112233,0.000139,2]
[339803289,1727989760991,-150.112233,0.000139,2]
[339803290,1727989761024,-150.112235,0.000139,2]
[339803291,1727989761060,-150.0,0.000139,2]
[339803292,1727989761093,-150.112233,0.000139,2]
[339803293,1727989761129,-150.112233,0.000139,2]
[339803294,1727989761163,-150.112233,0.000139,2]
[339803295,1727989761195,-500.0,0.00013907,2]
[339803296,1727989761228,-500.0,0.00013923,2]
[339803297,1727989761264,-282.021928,0.00013932,2]
[339803298,1727989761297,-187.308322,0.00013932,2]
[339803299,1727989761331,-160.0,0.00013941,6]
[339803300,1727989761365,-10235.0673567,0.00013962,2]
[339803301,1727989761398,-500.0,0.00013969,2]
[339803302,1727989761431,-500.0,0.00013971,2]
[339803303,1727989761463,-150.0,0.00013971,2]
[339803304,1727989761497,-151.99993879,0.00013971,2]
[339803305,1727989761535,-500.0,0.00013972,2]
[339803306,1727989761568,-500.0,0.00013972,2]
[339803307,1727989761800,-500.0,0.00013972,2]
[339803308,1727989761835,-595.17,0.00013972,2]
[339803309,1727989761869,-500.0,0.00013972,2]
[339803310,1727989761903,-500.0,0.00013972,2]
[339803311,1727989761939,-500.0,0.00013972,2]
[339803312,1727989761974,-500.0,0.00013972,2]
[339803313,1727989762010,-500.0,0.00013972,2]
[339803314,1727989762050,-500.0,0.00013972,2]
[339803315,1727989762083,-571.73340567,0.00013972,2]
[339803316,1727989762117,-156.70672287,0.00013972,2]
[339803317,1727989762152,-500.0,0.00013972,2]
[339803318,1727989762186,-500.0,0.00013972,2]
[339803319,1727989762218,-500.0,0.00013972,2]
[339803320,1727989762252,-649.38,0.00013972,2]
[339803321,1727989762285,-500.0,0.00013972,2]
[339803322,1727989762320,-513.99,0.00013972,2]
[339803323,1727989762355,-789.81,0.00013972,2]
[339803324,1727989762389,-500.0,0.00013972,2]
[339803325,1727989762423,-518.32,0.00013972,2]
[339803326,1727989762456,-500.0,0.00013972,2]
[339803327,1727989762491,-500.0,0.00013972,2]
[339803328,1727989762526,-653.77,0.00013972,2]
[339803329,1727989762561,-500.0,0.00013972,2]
[339803330,1727989762595,-466.35544551,0.00013972,2]
[339803331,1727989762633,-500.0,0.00013972,2]
[339803332,1727989762667,-623.72,0.00013972,2]
[339803333,1727989762699,-500.0,0.00013972,2]
[339803334,1727989762736,-500.0,0.00013972,2]
[339803335,1727989762769,-500.0,0.00013972,2]
[339803336,1727989762801,-500.0,0.00013972,2]
[339803337,1727989762833,-500.0,0.00013972,2]
[339803338,1727989762866,-500.0,0.00013972,2]
[339803339,1727989762900,-500.0,0.00013972,2]
[339803340,1727989762933,-618.83488297,0.00013972,2]
[339803341,1727989762966,-500.0,0.00013972,2]
[339803342,1727989763001,-500.0,0.00013972,2]
[339803343,1727989763035,-500.0,0.00013972,2]
[339803344,1727989763071,-500.0,0.00013972,2]
[339803345,1727989763106,-500.0,0.00013972,2]
[339803346,1727989763140,-500.0,0.00013972,2]
[339803347,1727989763175,-718.2,0.00013972,2]
[339803348,1727989763208,-500.0,0.00013972,2]
[339803349,1727989763243,-365.29681978,0.00013972,2]
[339803350,1727989763275,-500.0,0.00013972,2]
[339803351,1727989763308,-600.20134174,0.00013972,2]
[339803352,1727989763347,-500.0,0.00013972,2]
[339803353,1727989763381,-509.83673772,0.00013972,2]
[339803354,1727989763415,-500.0,0.00013972,2]
[339803355,1727989763450,-500.0,0.00013972,2]
[339803356,1727989763486,-1243.93,0.00013972,2]
[339803357,1727989763519,-500.0,0.00013972,2]
[339803358,1727989763551,-500.0,0.00013972,2]
[339803359,1727989763584,-500.0,0.00013972,2]
[339803360,1727989763617,-500.0,0.00013972,2]
[339803361,1727989763651,-645.54,0.00013972,2]
[339803362,1727989763684,-628.91,0.00013972,2]
[339803363,1727989763718,-500.0,0.00013972,5]
[339803364,1727989763755,-500.0,0.00013972,2]
[339803365,1727989763790,-500.0,0.00013972,2]
[339803366,1727989763824,-500.0,0.00013972,2]
[339803367,1727989763858,-500.0,0.00013972,2]
[339803368,1727989763891,-567.76,0.00013972,2]
[339803369,1727989763926,-500.0,0.00013972,2]
[339803370,1727989763962,-500.0,0.00013972,2]
[339803371,1727989763998,-500.0,0.00013972,2]
[339803372,1727989764039,-572.38,0.00013972,2]
[339803373,1727989764076,-500.0,0.00013972,2]
[339803374,1727989764110,-500.0,0.00013972,2]
[339803375,1727989764144,-633.65,0.00013972,2]
[339803376,1727989764178,-500.0,0.00013972,2]
[339803377,1727989764210,-524.72,0.00013972,2]
[339803378,1727989764245,-500.0,0.00013972,2]
[339803379,1727989764278,-500.0,0.00013972,2]
[339803380,1727989764311,-500.0,0.00013972,2]
[339803381,1727989764344,-500.0,0.00013972,2]
[339803382,1727989764380,-500.0,0.00013972,2]
[339803383,1727989764412,-500.0,0.00013972,2]
[339803384,1727989764447,-500.0,0.00013972,2]
[339803385,1727989764484,-500.0,0.00013972,2]
[339803386,1727989764518,-575.73,0.00013972,2]
[339803387,1727989764554,-500.0,0.00013972,2]
[339803388,1727989764588,-500.0,0.00013972,2]
[339803389,1727989764623,-528.75,0.00013972,2]
[339803390,1727989764656,-500.0,0.00013972,2]
[339803391,1727989764688,-500.0,0.00013972,2]
[339803392,1727989764721,-500.0,0.00013972,2]
[339803393,1727989764754,-500.0,0.00013972,2]
[339803394,1727989764789,-815.48,0.00013972,2]
[339803395,1727989764824,-500.0,0.00013972,2]
[339803396,1727989764859,-500.0,0.00013972,2]
[339803397,1727989764893,-500.0,0.00013972,2]
[339803398,1727989764926,-500.0,0.00013972,2]
[339803399,1727989764963,-733.13,0.00013972,2]
[339803400,1727989765007,-500.0,0.00013972,2]
[339803401,1727989765050,-500.0,0.00013972,2]
[339803402,1727989765087,-500.0,0.00013972,2]
[339803403,1727989765122,-500.0,0.00013972,2]
[339803404,1727989765157,-2145.82,0.00013972,7]
[339803405,1727989765192,-500.0,0.00013972,2]
[339803406,1727989765226,-500.0,0.00013972,2]
[339803407,1727989765260,-500.0,0.00013972,2]
[339803408,1727989765295,-523.49,0.00013972,2]
[339803409,1727989765331,-530.98,0.00013972,2]
[339803410,1727989765366,-500.0,0.00013972,2]
[339803411,1727989765606,-500.0,0.00013972,2]
[339803412,1727989765641,-500.0,0.00013972,2]
[339803413,1727989765675,-500.0,0.00013972,2]
[339803414,1727989765710,-901.4,0.00013972,2]
[339803415,1727989765745,-500.0,0.00013972,2]
[339803416,1727989765778,-534.43728534,0.00013972,2]
[339803417,1727989765813,-500.0,0.00013972,2]
[339803418,1727989765850,-500.0,0.00013972,2]
[339803419,1727989765888,-500.0,0.00013972,2]
[339803420,1727989765929,-500.0,0.00013972,2]
[339803421,1727989765968,-500.0,0.00013972,2]
[339803422,1727989766004,-500.0,0.00013972,2]
[339803423,1727989766039,-500.0,0.00013972,2]
[339803424,1727989766077,-500.0,0.00013972,2]
[339803425,1727989766114,-500.0,0.00013972,2]
[339803426,1727989766148,-434.4767841,0.00013972,2]
[339803427,1727989766183,-500.0,0.00013972,2]
[339803428,1727989766218,-500.0,0.00013972,2]
[339803429,1727989766253,-647.8,0.00013972,2]
[339803430,1727989766288,-602.6,0.00013972,2]
[339803431,1727989766321,-500.0,0.00013972,2]
[339803432,1727989766354,-500.0,0.00013972,2]
[339803433,1727989766387,-500.0,0.00013972,2]
[339803434,1727989766422,-500.0,0.00013972,2]
[339803435,1727989766459,-1147.61,0.00013972,2]
[339803436,1727989766497,-500.0,0.00013972,2]
[339803437,1727989766531,-500.0,0.00013972,2]
[339803438,1727989766568,-500.0,0.00013972,2]
[339803439,1727989766603,-500.0,0.00013972,2]
[339803440,1727989766636,-611.12,0.00013972,2]
[339803441,1727989766672,-541.281027,0.00013972,2]
[339803442,1727989766708,-500.0,0.00013972,2]
[339803443,1727989766744,-500.0,0.00013972,2]
[339803444,1727989766779,-602.71,0.00013972,2]
[339803445,1727989766814,-500.0,0.00013972,2]
[339803446,1727989766852,-500.0,0.00013972,2]
[339803447,1727989766890,-500.0,0.00013972,2]
[339803448,1727989766924,-571.18,0.00013972,2]
[339803449,1727989766958,-500.0,0.00013972,2]
[339803450,1727989766991,-500.0,0.00013972,2]
[339803451,1727989767024,-514.62,0.00013972,2]
[339803452,1727989767057,-500.0,0.00013972,2]
[339803453,1727989767089,-500.0,0.00013972,2]
[339803454,1727989767125,-500.0,0.00013972,2]
[339803455,1727989767161,-500.0,0.00013972,2]
[339803456,1727989767195,-500.0,0.00013972,2]
[339803457,1727989767230,-531.07,0.00013972,2]
[339803458,1727989767263,-458.97,0.00013972,2]
[339803459,1727989767299,-500.0,0.00013972,2]
[339803460,1727989767339,-500.0,0.00013972,2]
[339803461,1727989767376,-500.0,0.00013972,2]
[339803462,1727989767413,-744.27,0.00013972,2]
[339803463,1727989767450,-634.02,0.00013972,2]
[339803464,1727989767486,-500.0,0.00013972,2]
[339803465,1727989767523,-500.0,0.00013972,2]
[339803466,1727989767561,-500.0,0.00013972,2]
[339803467,1727989767594,-500.0,0.00013972,2]
[339803468,1727989767628,-500.0,0.00013972,2]
[339803469,1727989767661,-500.0,0.00013972,2]
[339803470,1727989767694,-601.83,0.00013972,2]
[339803471,1727989767728,-540.09,0.00013972,2]
[339803472,1727989767762,-770.45,0.00013972,2]
[339803473,1727989767797,-500.0,0.00013972,2]
[339803474,1727989767831,-500.0,0.00013972,2]
[339803475,1727989767866,-500.0,0.00013972,2]
[339803476,1727989767899,-500.0,0.00013972,2]
[339803477,1727989767935,-671.14,0.00013972,2]
[339803478,1727989767969,-619.2,0.00013972,2]
[339803479,1727989768002,-500.0,0.00013972,2]
[339803480,1727989768039,-508.99,0.00013972,2]
[339803481,1727989768078,-500.0,0.00013972,2]
[339803482,1727989768111,-500.0,0.00013972,2]
[339803483,1727989768145,-500.0,0.00013972,2]
[339803484,1727989768177,-500.0,0.00013972,2]
[339803485,1727989768210,-500.0,0.00013972,2]
[339803486,1727989768243,-709.44,0.00013972,2]
[339803487,1727989768282,-500.0,0.00013972,2]
[339803488,1727989768314,-154.46395219,0.00013972,2]
[339803489,1727989768347,-500.0,0.00013972,2]
[339803490,1727989768380,-607.95,0.00013972,2]
[339803491,1727989768413,-523.0,0.00013972,2]
[339803492,1727989768457,-500.0,0.00013972,2]
[339803493,1727989768499,-676.04,0.00013972,2]
[339803494,1727989768541,-739.86,0.00013972,2]
[339803495,1727989768576,-500.0,0.00013972,2]
[339803496,1727989768611,-500.0,0.00013972,2]
[339803497,1727989768645,-500.0,0.00013972,2]
[339803498,1727989768679,-628.89293735,0.00013972,2]
[339803499,1727989768716,-500.0,0.00013972,2]
[339803500,1727989768752,-571.88,0.00013972,2]
[339803501,1727989768788,-500.0,0.00013972,2]
[339803502,1727989768822,-500.0,0.00013972,2]
[339803503,1727989768856,-500.0,0.00013972,2]
[339803504,1727989768890,-500.0,0.00013972,2]
[339803505,1727989768925,-500.0,0.00013972,2]
[339803506,1727989768962,-500.0,0.00013972,2]
[339803507,1727989768997,-500.0,0.00013972,2]
[339803508,1727989769035,-941.49,0.00013972,2]
[339803509,1727989769068,-500.0,0.00013972,2]
[339803510,1727989769102,-500.0,0.00013972,2]
[339803511,1727989769134,-500.0,0.00013972,2]
[339803512,1727989769168,-561.3,0.00013972,2]
[339803513,1727989769202,-500.0,0.00013972,2]
[339803514,1727989769235,-500.0,0.00013972,2]
[339803515,1727989769511,-500.0,0.00013972,2]
[339803516,1727989769551,-596.22,0.00013972,2]
[339803517,1727989769584,-500.0,0.00013972,2]
[339803518,1727989769624,-524.20681837,0.00013972,2]
[339803519,1727989769664,-541.98073947,0.00013972,2]
[339803520,1727989769698,-500.0,0.00013972,2]
[339803521,1727989769737,-643.22,0.00013972,2]
[339803522,1727989769772,-500.0,0.00013972,2]
[339803523,1727989769807,-500.0,0.00013972,2]
[339803524,1727989769843,-500.0,0.00013972,2]
[339803525,1727989769879,-305.40973619,0.00013972,2]
[339803526,1727989769915,-500.0,0.00013972,2]
[339803527,1727989769949,-500.0,0.00013972,2]
[339803528,1727989769984,-500.0,0.00013972,2]
[339803529,1727989770019,-542.88,0.00013972,2]
[339803530,1727989770056,-500.0,0.00013972,2]
[339803531,1727989770088,-500.0,0.00013972,2]
[339803532,1727989770121,-500.0,0.00013972,2]
[339803533,1727989770158,-500.0,0.00013972,2]
[339803534,1727989770196,-500.0,0.00013972,2]
[339803535,1727989770231,-516.36954001,0.00013972,2]
[339803536,1727989770266,-500.0,0.00013972,2]
[339803537,1727989770301,-500.0,0.00013972,2]
[339803538,1727989770336,-569.39,0.00013972,2]
[339803539,1727989770372,-500.0,0.00013972,2]
[339803540,1727989770406,-500.0,0.00013972,2]
[339803541,1727989770440,-525.15,0.00013972,2]
[339803542,1727989770476,-500.50724954,0.00013972,2]
[339803543,1727989770511,-841.55,0.00013972,2]
[339803544,1727989770548,-701.65,0.00013972,2]
[339803545,1727989770582,-500.0,0.00013972,2]
[339803546,1727989770617,-500.0,0.00013972,2]
[339803547,1727989770654,-500.0,0.00013972,2]
[339803548,1727989770690,-546.65,0.00013972,2]
[339803549,1727989770726,-500.0,0.00013972,2]
[339803550,1727989770761,-500.0,0.00013972,2]
[339803551,1727989770796,-920.12,0.00013972,2]
[339803552,1727989770831,-500.0,0.00013972,2]
[339803553,1727989770867,-834.48,0.00013972,2]
[339803554,1727989770904,-500.0,0.00013972,2]
[339803555,1727989770938,-500.0,0.00013972,2]
[339803556,1727989770974,-500.0,0.00013972,2]
[339803557,1727989771013,-500.0,0.00013972,2]
[339803558,1727989771054,-500.0,0.00013972,2]
[339803559,1727989771091,-500.0,0.00013972,2]
[339803560,1727989771125,-500.0,0.00013972,2]
[339803561,1727989771176,-500.0,0.00013972,2]
[339803562,1727989771213,-774.47,0.00013972,2]
[339803563,1727989771249,-500.0,0.00013972,2]
[339803564,1727989771297,-827.37,0.00013972,2]
[339803565,1727989771333,-604.14,0.00013972,2]
[339803566,1727989771369,-500.55215447,0.00013972,2]
[339803567,1727989771404,-619.56062027,0.00013972,2]
[339803568,1727989771439,-500.0,0.00013972,2]
[339803569,1727989771474,-500.0,0.00013972,2]
[339803570,1727989771508,-500.0,0.00013972,2]
[339803571,1727989771545,-500.0,0.00013972,2]
[339803572,1727989771580,-500.0,0.00013972,2]
[339803573,1727989771617,-732.1,0.00013972,2]
[339803574,1727989771654,-500.0,0.00013972,2]
[339803575,1727989771690,-500.0,0.00013972,2]
[339803576,1727989771728,-500.0,0.00013972,2]
[339803577,1727989771765,-569.87,0.00013972,2]
[339803578,1727989771801,-500.0,0.00013972,2]
[339803579,1727989771837,-500.0,0.00013972,2]
[339803580,1727989771873,-500.0,0.00013972,2]
[339803581,1727989771909,-500.0,0.00013972,2]
[339803582,1727989771944,-500.0,0.00013972,2]
[339803583,1727989771980,-564.96605348,0.00013972,2]
[339803584,1727989772017,-521.23,0.00013972,2]
[339803585,1727989772061,-500.0,0.00013972,2]
[339803586,1727989772101,-500.0,0.00013972,2]
[339803587,1727989772138,-500.0,0.00013972,2]
[339803588,1727989772174,-567.93,0.00013972,2]
[339803589,1727989772211,-634.51981557,0.00013972,2]
[339803590,1727989772246,-500.0,0.00013972,2]
[339803591,1727989772283,-739.51,0.00013972,2]
[339803592,1727989772320,-500.0,0.00013972,2]
[339803593,1727989772357,-647.66,0.00013972,2]
[339803594,1727989772395,-500.0,0.00013972,2]
[339803595,1727989772432,-673.33,0.00013972,2]
[339803596,1727989772471,-500.0,0.00013972,2]
[339803597,1727989772508,-1892.38,0.00013972,2]
[339803598,1727989772548,-500.0,0.00013972,2]
[339803599,1727989772586,-500.0,0.00013972,2]
[339803600,1727989772623,-500.0,0.00013972,2]
[339803601,1727989772659,-502.54,0.00013972,2]
[339803602,1727989772696,-500.0,0.00013972,2]
[339803603,1727989772734,-670.72,0.00013972,2]
[339803604,1727989772770,-500.0,0.00013972,2]
[339803605,1727989772805,-500.0,0.00013972,2]
[339803606,1727989772840,-500.0,0.00013972,2]
[339803607,1727989772876,-500.0,0.00013972,2]
[339803608,1727989772911,-500.0,0.00013972,2]
[339803609,1727989772946,-500.0,0.00013972,2]
[339803610,1727989772981,-500.0,0.00013972,2]
[339803611,1727989773015,-617.53,0.00013972,2]
[339803612,1727989773051,-500.0,0.00013972,2]
[339803613,1727989773088,-500.0,0.00013972,2]
[339803614,1727989773121,-500.0,0.00013972,2]
[339803615,1727989773160,-500.0,0.00013972,2]
[339803616,1727989773195,-500.0,0.00013972,2]
[339803617,1727989773231,-500.0,0.00013972,2]
[339803618,1727989773266,-500.0,0.00013972,2]
[339803619,1727989773516,-500.0,0.00013972,2]
[339803620,1727989773561,-500.0,0.00013972,2]
[339803621,1727989773605,-703.99,0.00013972,2]
[339803622,1727989773649,-749.41,0.00013972,2]
[339803623,1727989773689,-500.0,0.00013972,2]
[339803624,1727989773727,-500.0,0.00013972,2]
[339803625,1727989773766,-500.0,0.00013972,2]
[339803626,1727989773806,-500.0,0.00013972,2]
[339803627,1727989773847,-1172.79,0.00013972,2]
[339803628,1727989773888,-500.0,0.00013972,2]
[339803629,1727989773927,-500.0,0.00013972,2]
[339803630,1727989773964,-500.0,0.00013972,2]
[339803631,1727989774001,-500.0,0.00013972,2]
[339803632,1727989774037,-596.75,0.00013972,2]
[339803633,1727989774073,-500.0,0.00013972,2]
[339803634,1727989774110,-662.26,0.00013972,2]
[339803635,1727989774146,-2027.46,0.00013972,2]
[339803636,1727989774180,-500.0,0.00013972,2]
[339803637,1727989774215,-500.0,0.00013972,2]
[339803638,1727989774251,-500.0,0.00013972,2]
[339803639,1727989774289,-500.0,0.00013972,2]
[339803640,1727989774324,-599.02,0.00013972,2]
[339803641,1727989774361,-500.0,0.00013972,2]
[339803642,1727989774399,-821.45,0.00013972,2]
[339803643,1727989774435,-781.47,0.00013972,2]
[339803644,1727989774472,-500.0,0.00013972,2]
[339803645,1727989774506,-565.41,0.00013972,2]
[339803646,1727989774554,-658.62,0.00013972,2]
[339803647,1727989774590,-500.0,0.00013972,2]
[339803648,1727989774626,-600.01,0.00013972,2]
[339803649,1727989774662,-260.93479065,0.00013972,2]
[339803650,1727989774697,-500.0,0.00013972,2]
[339803651,1727989774735,-500.0,0.00013972,2]
[339803652,1727989774773,-500.0,0.00013972,2]
[339803653,1727989774812,-696.78,0.00013972,2]
[339803654,1727989774849,-500.0,0.00013972,2]
[339803655,1727989774884,-500.0,0.00013972,2]
[339803656,1727989774918,-500.0,0.00013972,2]
[339803657,1727989774955,-500.0,0.00013972,2]
[339803658,1727989774991,-737.55,0.00013972,2]
[339803659,1727989775028,-500.0,0.00013972,2]
[339803660,1727989775063,-500.0,0.00013972,2]
[339803661,1727989775096,-500.0,0.00013972,2]
[339803662,1727989775130,-500.0,0.00013972,2]
[339803663,1727989775162,-500.0,0.00013972,2]
[339803664,1727989775196,-500.0,0.00013972,2]
[339803665,1727989775228,-1261.5,0.00013972,2]
[339803666,1727989775261,-500.0,0.00013972,2]
[339803667,1727989775295,-500.0,0.00013972,2]
[339803668,1727989775333,-500.0,0.00013972,2]
[339803669,1727989775369,-500.0,0.00013972,2]
[339803670,1727989775403,-686.64,0.00013972,2]
[339803671,1727989775438,-500.0,0.00013972,2]
[339803672,1727989775471,-793.17,0.00013972,2]
[339803673,1727989775504,-500.0,0.00013972,2]
[339803674,1727989775539,-500.0,0.00013972,2]
[339803675,1727989775573,-500.0,0.00013972,2]
[339803676,1727989775607,-500.0,0.00013972,2]
[339803677,1727989775642,-764.13,0.00013972,2]
[339803678,1727989775677,-514.45395012,0.00013972,2]
[339803679,1727989775712,-500.0,0.00013972,2]
[339803680,1727989775747,-548.07,0.00013972,2]
[339803681,1727989775780,-500.0,0.00013972,2]
[339803682,1727989775814,-500.0,0.00013972,2]
[339803683,1727989775848,-500.0,0.00013972,2]
[339803684,1727989775881,-500.0,0.00013972,2]
[339803685,1727989775915,-562.89476415,0.00013972,2]
[339803686,1727989775948,-500.0,0.00013972,2]
[339803687,1727989775983,-500.0,0.00013972,2]
[339803688,1727989776019,-519.60835079,0.00013972,2]
[339803689,1727989776058,-1053.02,0.00013972,2]
[339803690,1727989776095,-676.55,0.00013972,2]
[339803691,1727989776130,-500.0,0.00013972,2]
[339803692,1727989776166,-500.0,0.00013972,2]
[339803693,1727989776200,-603.1,0.00013972,2]
[339803694,1727989776232,-500.0,0.00013972,2]
[339803695,1727989776265,-500.0,0.00013972,2]
[339803696,1727989776299,-500.0,0.00013972,2]
[339803697,1727989776333,-500.0,0.00013972,2]
[339803698,1727989776366,-786.97,0.00013972,2]
[339803699,1727989776398,-500.0,0.00013972,2]
[339803700,1727989776434,-500.0,0.00013972,2]
[339803701,1727989776467,-564.01,0.00013972,2]
[339803702,1727989776499,-500.0,0.00013972,2]
[339803703,1727989776531,-377.7402353,0.00013972,2]
[339803751,1727989832004,-159.30885,0.00013044,2]
[339803754,1727989832015,-159.30885,0.00013384,2]
[339803756,1727989832025,-300.0,0.00013697,2]
[339803758,1727989832034,-300.0,0.00013697,2]
[339803760,1727989832044,-500.0,0.00013698,2]
[339803762,1727989832055,-500.0,0.00013698,2]
[339803764,1727989832066,-500.0,0.00013698,2]
[339803766,1727989832079,-500.0,0.00013698,2]
[339803768,1727989832089,-500.0,0.00013698,2]
[339803770,1727989832099,-500.0,0.00013698,2]
[339803772,1727989832108,-595.27,0.00013698,2]
[339803774,1727989832119,-723.99,0.00013698,2]
[339803776,1727989832129,-597.05,0.00013698,2]
[339803778,1727989832139,-1176.11,0.00013698,2]
[339803780,1727989832150,-500.0,0.00013698,2]
[339803782,1727989832160,-500.0,0.00013698,2]
[339803784,1727989832169,-1156.37,0.00013698,2]
[339803787,1727989832180,-156.70672287,0.00013698,2]